Workbook

Sheet Buyout Request
A1: UMASS BOSTON COURSE BUYOUT REQUEST FORM
A3: This form should be submitted to the Department Chair or Director for review prior to the submission of any proposal for external funding.
A5: Once approved, and when the funding is awarded, the form should be updated as necessary, and forwarded to the Dean. Once approval is received from the Dean's Office, the signed request form should be attached to the Personnel Action Form (ePAF) which will be routed to the Provost's Office. Requests for fall semester buyouts should be submitted no later than February 20th. Requests for spring buyouts should be submitted no later than October 20th. Faculty are encouraged to buy out graduate courses first and undergraduate courses second. If requesting access to the salary savings by the Course Buyout contact the Provost Office.
A7: All fields are required.
A8: Sections I through III to be completed by funding department
A10: I. COURSE BUYOUT PERIOD:
A11: Academic Year | H11: *Select Academic Year* | Q11: Semester | W11: *Select Semester*
A13: II. EMPLOYEE INFORMATION:
A14: Work College/Unit | K14: Work Department/Center/Institute | W14: Course Buyout Requested ($)
W15: =IF(P40="Fields Incomplete",0,P40) -> 0
A17: Employee Name | K17: Employee Home Department | W17: Employee Type
W18: *Select Type*
A20: Current Teaching Load: (Select base teaching load before CLRs and other adjustments) | W20: Buyout Rate per Course
G21: *Select Course Load* | W21: =IF(G21="1:1",0.2,IF(G21="1:2",0.15,IF(G21="2:2",0.1,IF(G21="2:3",0.08,IF(G21="3:3",0.067,IF(G21="4:4",0.125,"SELECT TEACHING LOAD")))))) -> SELECT TEACHING LOAD
A23: List all assigned courses for semester, indicating which one(s) are included in the buyout request: | W23: =IF(COUNTIF(B25:B31,"Yes")=0,"SELECT COURSE","") -> SELECT COURSE
A24: Buyout Requested? | G24: Course Designator | K24: Course # | O24: Course Name | V24: Section #
B25: *Select Y/N*
B27: *Select Y/N*
B29: *Select Y/N*
B31: *Select Y/N*
A34: Request Justification / Additional Comments: (Attach additional page if necessary)
A38: III. FUNDING:
A39: Employee Annual Salary | G39: Buyout Rate | K39: # of Courses | P39: Calculated Buyout | V39: Related Fringe | W39: Total Institution Benefit
G40: =W21 -> SELECT TEACHING LOAD | K40: =IF(COUNTIF(B25:B31,"Yes")=0,"SELECT COURSE",COUNTIF(B25:B31,"Yes")) -> SELECT COURSE | P40: =IF(ISERROR(A40*G40*K40),"FIELDS INCOMPLETE",A40*G40*K40) -> FIELDS INCOMPLETE | V40: =IF(ISERROR(IF(A40>0,(P40*HLOOKUP($H$11,Rates!$B$3:$V$45,15,FALSE)))+(K43*HLOOKUP($H$11,Rates!$B$3:$V$45,9,FALSE)*V43)),"INCOMPLETE",IF(A40>0,(P40*HLOOKUP($H$11,Rates!$B$3:$V$45,15,FALSE)))+(K43*HLOOKUP($H$11,Rates!$B$3:$V$45,9,FALSE)*V43)) -> INCOMPLETE | W40: =IF(ISERROR(P40+V40),"FIELDS INCOMPLETE",P40+V40) -> FIELDS INCOMPLETE
A42: HR Pay Period Start | G42: HR Pay Period End | K42: # of Pay Periods | P42: Biweekly PayRate | V42: % Transferred
K43: =IF(AND(A43="",G43=""),"",((G43-(A43-1))/14)) ->  | P43: =A40/26 -> 0 | V43: =IF(IF(ISERROR(P40/(K43*P43)),"FIELDS INCOMPLETE",P40/(K43*P43))>1,"LONGER TIMEFRAME REQUIRED",P40/(K43*P43)) -> LONGER TIMEFRAME REQUIRED
A44: =IF(A43="","",TEXT(WEEKDAY(A43,1),"dddd")) ->  | G44: =IF(G43="","",TEXT(WEEKDAY(G43,1),"dddd")) -> 
A47: Funding Sources: (Must add up to amount of ePAF Salary Transfer) | V47: Chartfield Lookup
A48: Funding College/Unit | H48: Funding Dept | L48: Speedtype | O48: Fund Code | R48: Project Start Date | V48: Project End Date | W48: Amount of Buyout
V53: Unidentified Funding | W53: =IF(ISERROR(W15-SUM(W49:W51)),"FIELDS INCOMPLETE",W15-SUM(W49:W51)) -> 0
A55: IV. USE OF SAVINGS: (to be completed by Chair/Director/Dean)
A56: Use | W56: Amount
V61: Unused Savings | W61: =IF(ISERROR(W15-SUM(W57:W59)),"FIELDS INCOMPLETE",W15-SUM(W57:W59)) -> 0
V62: Savings must be used in the fiscal year of the course being bought out. Unused savings will revert to the institution at fiscal year end.
A64: V. APPROVALS: (to be obtained via DocuSign)
A66: Buyout Employee | M66: Funding PI | U66: Chair/Director/Dean
A68: Once approval is received from the Dean's Office, the signed form should be attached to the Personnel Action Form (ePAF) which will be routed to the Provost's Office for review and approval/processing. It is the responsibility of the funding department to ensure both ePAFS, Buyout and Return, are entered appropriately into HR Direct.

Sheet Rates
A1: UMass Boston Fringe Rates | L1: Projected Figure
L2: Proposed Figure
K3: AY23/24 | L3: AY24/25 | M3: AY25/26 | N3: AY26/27 | O3: AY27/28 | P3: AY28/29 | Q3: AY29/30 | R3: AY30/31 | S3: AY31/32 | T3: AY32/33
B4: FY2015 | C4: FY2016 | D4: FY2017 | E4: FY2018 | F4: FY2019 | G4: FY2020 | H4: FY2021 | I4: FY2022 | J4: FY2023 | K4: FY2024 | L4: FY2025 | M4: FY2026 | N4: FY2027 | O4: FY2028 | P4: FY2029 | Q4: FY2030 | R4: FY2031 | S4: FY2032 | T4: FY2033 | V4: <-- add new year before this column | AB4: 1
A5: Fringe Benefit Rate | B5: 0.2727 | C5: 0.2917 | D5: 0.335 | E5: 0.3486 | F5: 0.3489 | G5: 0.3548 | H5: 0.3638 | I5: 0.3746 | J5: 0.395 | K5: 0.432 | L5: 0.4344 | M5: 0.356 | N5: =M5*1.025 -> 0.3649 | O5: 0.3740225 | P5: 0.3833730625 | Q5: 0.3929573891 | R5: 0.4027813238 | S5: 0.4128508569 | T5: 0.4231721283 | W5: of regular (benefited) employee compensation (711000) | AB5: 2
A6: (Incl. health insurance, pension & terminal leave) | AB6: 3 | AE6: *Select Location* | AH6: *Select Semester*
AB7: 4 | AE7: On-Campus | AH7: Fall
A8: Payroll Tax Rate | B8: 0.0159 | C8: 0.0165 | D8: 0.0166 | E8: 0.0141 | F8: 0.0173 | G8: 0.0243 | H8: 0.0194 | I8: 0.0197 | J8: 0.0185 | K8: 0.0211 | L8: 0.0162 | M8: 0.0221 | N8: =M8*1.025 -> 0.0226525 | O8: 0.0232188125 | P8: 0.02379928281 | Q8: 0.02439426488 | R8: 0.0250041215 | S8: 0.02562922454 | T8: 0.02626995516 | W8: of compensation for regular & contract employees | AB8: 5 | AE8: Off-Campus | AH8: Spring
A9: (Incl. unemployment, universal health, medicare, & PFML tax) | AB9: 6
AB10: 7
A11: Health & Welfare | B11: 30 | C11: 31 | D11: 32 | E11: 33 | F11: 33 | G11: 33 | H11: 33 | I11: 33 | J11: 33 | K11: 33 | L11: 33 | M11: 33 | N11: 33 | O11: 33 | P11: 33 | Q11: 33 | R11: 33 | S11: 33 | T11: 33 | W11: bi-weekly per FTE (711000 only) | AB11: 8
AB12: 9 | AE12: *Select Activity Type*
A13: Worker's Compensation | B13: 0.0031 | C13: 0.0019 | D13: 0.0019 | E13: 0.0019 | F13: 0.0026 | G13: 0.0026 | H13: 0.0026 | I13: 0.0026 | J13: 0.0026 | K13: 0.0026 | L13: 0.0017 | M13: 0.0017 | N13: 0.0017 | O13: 0.0017 | P13: 0.0017 | Q13: 0.0017 | R13: 0.0017 | S13: 0.0017 | T13: 0.0017 | W13: of compensation for regular & contract employees | AB13: 10 | AE13: Instruction
W14: (711000 only) | AB14: 11 | AE14: Research
AB15: 12 | AE15: Public Service/Other
AB16: 13
A17: 12 month appointments | B17: =B5+B8+B13 -> 0.2917 | C17: =C5+C8+C13 -> 0.3101 | D17: 0.3535 | E17: 0.3646 | F17: 0.3688 | G17: 0.3817 | H17: 0.3858 | I17: 0.3969 | J17: 0.4161 | K17: 0.4557 | L17: 0.4523 | M17: 0.3798 | N17: 0.3892525 | O17: 0.3989413125 | P17: 0.4088723453 | Q17: 0.4190516539 | R17: 0.4294854453 | S17: 0.4401800814 | T17: 0.4511420835 | AB17: 14
B18: =B11*26 -> 780 | C18: =C11*26 -> 806 | D18: 832 | E18: 858 | F18: 858 | G18: 858 | H18: 858 | I18: 858 | J18: 858 | K18: 858 | L18: 858 | M18: 858 | N18: 858 | O18: 858 | P18: 858 | Q18: 858 | R18: 858 | S18: 858 | T18: 858 | AB18: 15 | AE18: *Select Fiscal Year* | AH18: *Select Academic Year*
AB19: 16 | AE19: FY2033 | AH19: AY23/24 | AI19: FY2024
A20: 9 month appointments | B20: =B5+B8+B13 -> 0.2917 | C20: =C5+C8+C13 -> 0.3101 | D20: 0.3535 | E20: 0.3646 | F20: 0.3688 | G20: 0.3817 | H20: 0.3858 | I20: 0.3969 | J20: 0.4161 | K20: 0.4557 | L20: 0.4523 | M20: 0.3798 | N20: 0.3892525 | O20: 0.3989413125 | P20: 0.4088723453 | Q20: 0.4190516539 | R20: 0.4294854453 | S20: 0.4401800814 | T20: 0.4511420835 | AB20: 17 | AE20: FY2032 | AH20: AY24/25 | AI20: FY2025
B21: =B11*26 -> 780 | C21: =C11*26 -> 806 | D21: 832 | E21: 858 | F21: 858 | G21: 858 | H21: 858 | I21: 858 | J21: 858 | K21: 858 | L21: 858 | M21: 858 | N21: 858 | O21: 858 | P21: 858 | Q21: 858 | R21: 858 | S21: 858 | T21: 858 | AB21: 18 | AE21: FY2031 | AH21: AY25/26 | AI21: FY2026
A22: summer | B22: =B8 -> 0.0159 | C22: =C8 -> 0.0165 | D22: 0.0166 | E22: 0.0141 | F22: 0.0173 | G22: 0.0243 | H22: 0.0194 | I22: 0.0197 | J22: 0.0185 | K22: 0.0211 | L22: 0.0162 | M22: 0.0221 | N22: 0.0226525 | O22: 0.0232188125 | P22: 0.02379928281 | Q22: 0.02439426488 | R22: 0.0250041215 | S22: 0.02562922454 | T22: 0.02626995516 | W22: payroll tax only | AB22: 19 | AE22: FY2030 | AH22: AY26/27 | AI22: FY2027
AB23: 20 | AE23: FY2029 | AH23: AY27/28 | AI23: FY2028
A24: Graduate Student | B24: =B8 -> 0.0159 | C24: =C8 -> 0.0165 | D24: 0.0166 | E24: 0.0141 | F24: 0.0173 | G24: 0.0243 | H24: 0.0194 | I24: 0.0197 | J24: 0.0185 | K24: 0.0211 | L24: 0.0162 | M24: 0.0221 | N24: 0.0226525 | O24: 0.0232188125 | P24: 0.02379928281 | Q24: 0.02439426488 | R24: 0.0250041215 | S24: 0.02562922454 | T24: 0.02626995516 | W24: payroll tax only | AB24: 21 | AE24: FY2028 | AH24: AY28/29 | AI24: FY2029
AB25: 22 | AE25: FY2027 | AH25: AY29/30 | AI25: FY2030
A26: Undegraduate Student | B26: =B8 -> 0.0159 | C26: =C8 -> 0.0165 | D26: 0.0166 | E26: 0.0141 | F26: 0.0173 | G26: 0.0243 | H26: 0.0194 | I26: 0.0197 | J26: 0.0185 | K26: 0.0211 | L26: 0.0162 | M26: 0.0221 | N26: 0.0226525 | O26: 0.0232188125 | P26: 0.02379928281 | Q26: 0.02439426488 | R26: 0.0250041215 | S26: 0.02562922454 | T26: 0.02626995516 | W26: payroll tax only | AB26: 23 | AE26: FY2026 | AH26: AY30/31 | AI26: FY2031
AB27: 24 | AE27: FY2025 | AH27: AY31/32 | AI27: FY2032
A28: Other | B28: =B8+B13 -> 0.019 | C28: =C8+C13 -> 0.0184 | D28: 0.0185 | E28: 0.016 | F28: 0.0199 | G28: 0.0269 | H28: 0.022 | I28: 0.0223 | J28: 0.0211 | K28: 0.0237 | L28: 0.0179 | M28: 0.0238 | N28: 0.0243525 | O28: 0.0249188125 | P28: 0.02549928281 | Q28: 0.02609426488 | R28: 0.0267041215 | S28: 0.02732922454 | T28: 0.02796995516 | AB28: 25 | AE28: FY2024 | AH28: AY32/33 | AI28: FY2033
AB29: 26 | AE29: FY2023
AE30: FY2022 | AH30: *Select Type*
AE31: FY2021 | AH31: Academic Faculty
AE32: FY2020 | AH32: Calendar Faculty
AE33: FY2019 | AH33: Staff
B34: FY2015 | C34: FY2016 | D34: FY2017 | E34: FY2018 | F34: FY2019 | G34: FY2020 | H34: FY2021 | I34: FY2022 | J34: FY2023 | K34: FY2024 | L34: FY2025 | M34: FY2026 | N34: FY2027 | O34: FY2028 | P34: FY2029 | Q34: FY2030 | R34: FY2031 | S34: FY2032 | T34: FY2033 | AE34: FY2018
A35: F&A Rates | AE35: FY2017
A36: On-Campus | AE36: FY2016
A37: Instruction | B37: 0.46 | C37: 0.46 | D37: 0.46 | E37: 0.46 | F37: 0.46 | G37: 0.46 | H37: 0.46 | I37: 0.46 | J37: 0.46 | K37: 0.46 | L37: 0.48 | M37: 0.48 | N37: 0.48 | O37: 0.48 | P37: 0.48 | Q37: 0.48 | R37: 0.48 | S37: 0.48 | T37: 0.48 | W37: A00 | X37: =CONCATENATE($AE$7,".",A37) -> On-Campus.Instruction | AE37: FY2016
A38: Research | B38: 0.51 | C38: 0.525 | D38: 0.525 | E38: 0.525 | F38: 0.525 | G38: 0.525 | H38: 0.525 | I38: 0.525 | J38: 0.525 | K38: 0.525 | L38: 0.53 | M38: 0.54 | N38: 0.55 | O38: 0.555 | P38: 0.555 | Q38: 0.555 | R38: 0.555 | S38: 0.555 | T38: 0.555 | W38: B00 | X38: =CONCATENATE($AE$7,".",A38) -> On-Campus.Research
A39: Public Service/Other | B39: 0.364 | C39: 0.364 | D39: 0.364 | E39: 0.364 | F39: 0.364 | G39: 0.364 | H39: 0.364 | I39: 0.364 | J39: 0.364 | K39: 0.364 | L39: 0.357 | M39: 0.357 | N39: 0.357 | O39: 0.357 | P39: 0.357 | Q39: 0.357 | R39: 0.357 | S39: 0.357 | T39: 0.357 | W39: C00 | X39: =CONCATENATE($AE$7,".",A39) -> On-Campus.Public Service/Other
AE40: *Select F&A Base*
AE41: TDC - Total Direct Costs
A42: Off-Campus | AE42: MTDC - Modified Total Direct Costs
A43: Instruction | B43: 0.26 | C43: 0.26 | D43: 0.26 | E43: 0.26 | F43: 0.26 | G43: 0.26 | H43: 0.26 | I43: 0.26 | J43: 0.26 | K43: 0.26 | L43: 0.26 | M43: 0.26 | N43: 0.26 | O43: 0.26 | P43: 0.26 | Q43: 0.26 | R43: 0.26 | S43: 0.26 | T43: 0.26 | W43: A00 | X43: =CONCATENATE($AE$8,".",A43) -> Off-Campus.Instruction | AE43: NOFNA - No F&A
A44: Research | B44: 0.26 | C44: 0.26 | D44: 0.26 | E44: 0.26 | F44: 0.26 | G44: 0.26 | H44: 0.26 | I44: 0.26 | J44: 0.26 | K44: 0.26 | L44: 0.26 | M44: 0.26 | N44: 0.26 | O44: 0.26 | P44: 0.26 | Q44: 0.26 | R44: 0.26 | S44: 0.26 | T44: 0.26 | W44: B00 | X44: =CONCATENATE($AE$8,".",A44) -> Off-Campus.Research
A45: Public Service/Other | B45: 0.26 | C45: 0.26 | D45: 0.26 | E45: 0.26 | F45: 0.26 | G45: 0.26 | H45: 0.26 | I45: 0.26 | J45: 0.26 | K45: 0.26 | L45: 0.26 | M45: 0.26 | N45: 0.26 | O45: 0.26 | P45: 0.26 | Q45: 0.26 | R45: 0.26 | S45: 0.26 | T45: 0.26 | W45: C00 | X45: =CONCATENATE($AE$8,".",A45) -> Off-Campus.Public Service/Other
AE46: *Select Y/N*
AE47: No
AE48: Yes
AE51: *Select Course Load*
AE52: 1:1
AE53: 1:2
AE54: 2:2
AE55: 2:3
AE56: 3:3
AE57: 4:4
R67: =100/6 -> 16.66666667 | S67: =100/8 -> 12.5
R68: =R67*0.4 -> 6.666666667
